bitfinex/quotes_SOLUSD_20250908
["timestamp","ask_amount","ask_price","bid_price","bid_amount"]
[1757325611100,0.06,210.98,210.97,94.04855833]
[1757325611307,0.06,210.98,210.97,94.52255937]
[1757325611809,0.06,211.01,211.0,68.11559401]
[1757325612008,0.06,211.01,211.0,112.72159962]
[1757325612219,0.06,211.01,211.0,113.41159962]
[1757325612385,0.06,211.01,211.0,118.15093611]
[1757325612590,0.06,211.01,211.0,90.43097806]
[1757325612793,0.06,211.01,211.0,89.74097806]
[1757325613017,0.06,211.01,211.0,131.68602443]
[1757325613197,0.06,211.01,211.0,132.37602443]
[1757325614901,0.06,211.01,211.0,89.74097806]
[1757325615117,0.06,211.01,211.0,131.66602443]
[1757325615413,0.06,211.01,211.0,132.16602443]
[1757325616021,0.06,211.01,211.0,132.85602443]
[1757325618520,0.06,211.01,211.0,132.16602443]
[1757325618891,0.36,211.01,211.0,85.50164157]
[1757325619090,0.36,211.01,211.0,3.16095924]
[1757325619622,0.36,211.01,211.0,2.66095924]
[1757325619923,0.36,211.01,211.0,28.66095924]
[1757325620506,0.36,211.01,211.0,28.69095924]
[1757325621305,0.06,211.01,211.0,28.69095924]
[1757325622206,0.36,211.01,211.0,2.69095924]
[1757325622402,0.36,211.01,211.0,0.03]
[1757325622718,4.36504637,211.01,211.0,0.03]
[1757325624512,9.10415826,211.01,211.0,0.03]
[1757325625603,5.09911189,211.01,211.0,0.03]
[1757325625808,9.10415826,211.01,211.0,0.03]
[1757325626528,4.36504637,211.01,211.0,0.03]
[1757325626923,0.36,211.01,211.0,0.03]
[1757325627231,47.00415826,211.01,211.0,0.03]
[1757325628531,4.06504637,211.01,211.0,0.03]
[1757325628713,41.94504637,211.01,211.0,0.03]
[1757325628913,46.68415826,211.01,211.0,0.03]
[1757325629220,42.24504637,211.01,211.0,0.03]
[1757325629421,4.36504637,211.01,211.0,0.03]
[1757325629733,42.24504637,211.01,211.0,0.03]
[1757325630609,46.98415826,211.01,211.0,0.03]
[1757325634928,9.10415826,211.01,211.0,0.03]
[1757325635102,46.98415826,211.01,211.0,0.03]
[1757325636628,5.09911189,211.01,211.0,0.03]
[1757325636839,46.98415826,211.01,211.0,0.03]
[1757325637330,50.98920463,211.01,211.0,0.03]
[1757325637516,4.00504637,210.96,210.95,0.03]
[1757325637715,46.62528148,210.96,210.95,0.03]
[1757325637916,46.92528148,210.96,210.95,0.03]
[1757325638122,4.00504637,210.93,210.92,0.03]
[1757325638734,42.13504637,210.93,210.92,0.03]
[1757325639416,4.27504637,210.93,210.92,0.03]
[1757325639736,46.87595567,210.93,210.92,0.03]
[1757325640913,9.01595567,210.93,210.92,0.03]
[1757325641141,46.87595567,210.93,210.92,0.03]
[1757325641949,34.01009274,210.9,210.89,0.03]
[1757325642115,26.0,210.9,210.89,0.03]
[1757325642441,68.13504637,210.9,210.89,0.03]
[1757325643138,30.27504637,210.9,210.89,0.03]
[1757325643326,68.13504637,210.9,210.89,0.03]
[1757325643922,72.87663005,210.9,210.89,0.03]
[1757325644133,76.88167642,210.9,210.79,26.0]
[1757325644336,8.01009274,210.88,210.81,0.67]
[1757325644619,45.87009274,210.88,210.81,0.67]
[1757325644814,8.01009274,210.88,210.78,0.2]
[1757325645042,41.86504637,210.88,210.82,0.67]
[1757325645239,38.13,210.88,210.78,0.2]
[1757325645419,46.14009274,210.88,210.78,0.2]
[1757325645742,41.86504637,210.88,210.82,0.67]
[1757325645910,46.60707975,210.88,210.82,0.67]
[1757325646313,46.60707975,210.88,210.83,0.67]
[1757325648039,50.61212612,210.88,210.83,0.67]
[1757325648428,46.60707975,210.88,210.83,0.67]
[1757325649061,50.61212612,210.88,210.83,0.67]
[1757325649720,62.73720957,210.88,210.8,0.67]
[1757325649918,4.00504637,210.81,210.79,0.67]
[1757325650119,41.86504637,210.8,210.79,0.67]
[1757325650329,37.86,210.8,210.79,0.67]
[1757325650729,41.86504637,210.8,210.79,0.67]
[1757325651439,37.86,210.8,210.79,0.67]
[1757325651648,41.86504637,210.8,210.78,0.2]
[1757325651849,46.608897,210.8,210.78,0.87]
[1757325652246,46.608897,210.8,210.79,0.67]
[1757325654746,46.608897,210.8,210.79,0.67]
[1757325655046,46.608897,210.8,210.78,0.2]
[1757325655245,4.00504637,210.79,210.78,0.2]
[1757325655440,8.74910443,210.79,210.78,0.2]
[1757325655839,46.58910443,210.79,210.78,0.2]
[1757325656241,46.85910443,210.79,210.78,0.2]
[1757325656846,46.58910443,210.79,210.78,0.2]
[1757325657245,8.74910443,210.79,210.78,0.2]
[1757325657443,46.58910443,210.79,210.78,0.2]
[1757325657853,8.74910443,210.79,210.78,0.2]
[1757325658153,46.58910443,210.79,210.78,0.2]
[1757325658352,8.74910443,210.79,210.78,0.2]
[1757325658847,46.58910443,210.79,210.78,0.2]
[1757325659252,48.48911631,210.79,210.78,0.2]
[1757325659864,46.58910443,210.79,210.78,0.2]
[1757325660842,48.4891163,210.79,210.76,0.03]
[1757325661041,8.01009274,210.77,210.76,0.03]
[1757325661240,45.85009274,210.77,210.76,0.03]
[1757325661958,46.5895546,210.77,210.76,0.03]
[1757325662341,45.1560514,210.77,210.76,0.03]
[1757325662658,40.41154317,210.77,210.76,0.7]
[1757325663161,45.1560514,210.77,210.76,0.7]
[1757325663461,10.28617268,210.87,210.76,0.7]
[1757325663757,7.3160514,210.77,210.76,0.7]
[1757325663964,45.1560514,210.77,210.76,0.7]
[1757325664959,4.74428079,210.79,210.76,0.7]
[1757325665151,2.57154317,210.78,210.76,0.7]
[1757325665349,40.41154317,210.78,210.76,0.7]
[1757325665568,37.84,210.78,210.76,0.7]
[1757325665862,4.74293302,210.84,210.76,0.7]
[1757325666037,2.57154317,210.8,210.76,0.7]
[1757325666237,37.82,210.79,210.76,0.7]
[1757325666467,4.74293302,210.84,210.76,0.7]
[1757325666643,2.57154317,210.81,210.76,0.7]
[1757325666964,4.74293302,210.84,210.76,3.27154317]
[1757325667261,2.57154317,210.82,210.77,0.7]
[1757325667653,2.57154317,210.82,210.77,3.27154317]
[1757325667971,26.10055546,210.88,210.8,26.0]
[1757325667972,4.74225826,210.87,210.8,26.0]
[1757325668149,2.57154317,210.84,210.81,0.7]
[1757325668466,37.82,210.83,210.81,26.7]
[1757325668681,4.74225826,210.87,210.82,0.7]
[1757325668838,37.82,210.86,210.82,0.7]
[1757325669042,2.57154317,210.85,210.82,0.7]
[1757325669471,4.74158368,210.9,210.82,0.7]
[1757325669643,2.57154317,210.87,210.82,0.7]
[1757325669847,37.82,210.86,210.82,0.7]
[1757325670160,37.82,210.86,210.82,5.44335553]
[1757325670350,37.82,210.86,210.83,3.27154317]
[1757325670553,37.82,210.86,210.84,0.7]
[1757325671863,37.82,210.86,210.85,0.7]
[1757325672050,40.39154317,210.86,210.82,26.7]
[1757325672250,2.57154317,210.84,210.83,0.7]
[1757325672755,2.66035604,210.84,210.83,0.7]
[1757325673658,7.40328906,210.84,210.83,0.7]
[1757325673855,7.40328906,210.84,210.81,0.7]
[1757325674068,2.57154317,210.82,210.81,26.0]
[1757325674270,2.57154317,210.82,210.78,13.59559401]
[1757325674472,2.57154317,210.82,210.78,119.69559401]
[1757325674653,2.57154317,210.82,210.79,0.7]
[1757325675155,37.8,210.83,210.81,26.0]
[1757325675361,37.8,210.83,210.82,0.7]
[1757325675673,0.09598871,210.85,210.83,18.33867407]
[1757325675848,0.09598871,210.85,210.84,3.27154317]
[1757325676048,0.09598871,210.85,210.84,0.7]
[1757325677573,0.0935848,210.86,210.84,16.86713718]
[1757325677762,0.10403795,210.88,210.85,71.38713718]
[1757325677969,0.10403795,210.88,210.87,2.57154317]
[1757325678276,0.10403795,210.88,210.87,5.24175957]
[1757325678447,0.09117534,210.89,210.88,13.59559401]
[1757325678651,0.09117534,210.89,210.88,20.01155691]
[1757325679376,0.09117534,210.89,210.88,24.75359029]
[1757325679577,0.09117534,210.89,210.88,20.01155691]
[1757325679774,0.09117534,210.89,210.88,3.3702164]
[1757325680278,0.09117534,210.89,210.86,0.7]
[1757325680459,2.66271851,210.89,210.87,0.7]
[1757325680655,2.66271851,210.89,210.87,26.7]
[1757325681271,0.09117534,210.89,210.87,26.7]
[1757325681458,0.09117534,210.89,210.88,0.7]
[1757325681779,0.09117534,210.89,210.88,2.67228941]
[1757325682073,2.66271851,210.89,210.87,26.0]
[1757325682283,2.57154317,210.88,210.87,26.0]
[1757325682457,2.57154317,210.88,210.87,2.67395533]
[1757325682658,2.57154317,210.88,210.84,106.1]
[1757325682963,38.49,210.88,210.82,80.8]
[1757325683161,38.49,210.88,210.83,2.67543844]
[1757325683361,37.78,210.88,210.83,2.67543844]
[1757325683566,4.74248316,210.86,210.83,2.67543844]
[1757325683966,2.57154317,210.84,210.83,2.67543844]
[1757325684770,2.57154317,210.84,210.82,2.67543844]
[1757325684974,2.57154317,210.83,210.82,2.67543844]
[1757325685275,2.57154317,210.84,210.83,26.0]
[1757325686453,4.74248316,210.86,210.83,26.0]
[1757325686658,2.57154317,210.84,210.83,26.0]
[1757325686858,2.57154317,210.85,210.83,26.0]
[1757325687364,37.76,210.85,210.83,26.7]
[1757325687562,37.76,210.85,210.84,0.7]
[1757325687875,37.76,210.86,210.84,3.37606864]
[1757325688076,37.76,210.86,210.85,0.7]
[1757325688274,37.76,210.87,210.85,0.7]
[1757325689389,37.76,210.87,210.84,2.67606864]
[1757325689563,37.76,210.87,210.85,3.37606864]
[1757325689769,37.76,210.87,210.85,0.7]
[1757325690362,37.76,210.87,210.84,2.67509294]
[1757325690561,37.76,210.87,210.84,3.37509294]
[1757325691491,3.28154317,210.86,210.84,28.67509294]
[1757325691694,2.57154317,210.85,210.84,26.0]
[1757325691883,2.57154317,210.85,210.83,26.0]
[1757325692082,37.76,210.87,210.84,0.7]
[1757325692274,40.33154317,210.87,210.84,26.7]
[1757325692671,0.08548412,210.85,210.84,26.7]
[1757325693088,0.08548412,210.85,210.84,0.7]
[1757325693292,37.82548412,210.85,210.84,0.7]
[1757325693687,37.82548412,210.85,210.83,26.0]
[1757325694087,37.82548412,210.85,210.84,26.0]
[1757325694487,37.82548412,210.85,210.84,26.7]
[1757325694685,37.82548412,210.85,210.83,26.0]
[1757325694993,37.82548412,210.85,210.84,26.0]
[1757325695288,0.08548412,210.85,210.84,13.59559401]
[1757325695491,0.08548412,210.85,210.84,40.26559401]
[1757325695794,0.08548412,210.85,210.84,40.29559401]
[1757325696170,0.08548412,210.85,210.84,45.03852703]
[1757325696373,0.08548412,210.85,210.84,40.29559401]
[1757325696576,0.08548412,210.85,210.84,47.6100702]
[1757325697209,0.08548412,210.85,210.84,42.96750969]
[1757325697704,0.08548412,210.85,210.84,45.53905286]
[1757325697876,0.08548412,210.85,210.84,42.96750969]
[1757325698600,0.08548412,210.85,210.84,47.71044271]
[1757325698924,0.08548412,210.85,210.84,42.96750969]
[1757325699398,0.08548412,210.85,210.84,47.71044271]
[1757325700086,0.08548412,210.85,210.84,42.96750969]
[1757325700586,2.65702729,210.85,210.84,28.70191568]
[1757325700785,8.06973537,210.85,210.84,26.03]
[1757325701095,8.06973537,210.85,210.84,0.03]
[1757325701276,27.99624095,210.85,210.76,0.03]
[1757325701481,2.57154317,210.77,210.76,0.03]
[1757325701680,30.74518363,210.74,210.71,0.03]
[1757325701898,30.74518363,210.74,210.66,0.03]
[1757325701899,2.57154317,210.7,210.66,0.03]
[1757325702087,2.57154317,210.67,210.66,0.03]
[1757325702494,3.22154317,210.67,210.66,0.03]
[1757325702798,5.79308634,210.67,210.64,0.03]
[1757325702993,5.14308634,210.65,210.64,0.03]
[1757325703198,0.65,210.67,210.64,0.03]
[1757325703502,2.57154317,210.65,210.64,0.03]
[1757325703684,40.29154317,210.65,210.64,0.03]
[1757325704287,44.05659109,210.65,210.64,0.03]
[1757325704506,44.67659109,210.65,210.64,0.03]
[1757325704690,44.05659109,210.65,210.64,0.03]
[1757325704889,0.62,210.67,210.64,0.03]
[1757325705090,6.33659109,210.65,210.64,0.03]
[1757325705889,0.62,210.75,210.65,26.0]
[1757325706105,14.36,210.74,210.7,6.33659109]
[1757325706305,6.33659109,210.73,210.68,26.0]
[1757325706483,6.33659109,210.73,210.68,26.67]
[1757325706685,6.33659109,210.73,210.69,0.67]
[1757325706883,14.36,210.74,210.69,0.67]
[1757325707084,6.33659109,210.73,210.69,0.67]
[1757325707789,6.33659109,210.73,210.69,5.41612903]
[1757325707990,1.9001924,210.8,210.72,26.0]
[1757325708198,6.33659109,210.76,210.72,0.67]
[1757325708510,6.33659109,210.77,210.73,0.67]
[1757325708688,44.07659109,210.77,210.73,0.67]
[1757325708907,6.33659109,210.76,210.7,33.00659109]
[1757325709405,6.33659109,210.76,210.7,26.67]
[1757325709592,6.33659109,210.75,210.7,26.67]
[1757325709791,6.33659109,210.75,210.71,4.74585923]
[1757325710707,6.33659109,210.75,210.71,5.41585923]
[1757325711099,6.33659109,210.76,210.71,4.74585923]
[1757325711309,37.74,210.75,210.72,0.67]
[1757325711610,0.62,210.8,210.73,0.67]
[1757325711803,6.33659109,210.78,210.74,4.74518363]
[1757325712003,6.33659109,210.78,210.74,5.41518363]
[1757325712204,37.74,210.77,210.74,4.74518363]
[1757325712606,37.74,210.77,210.74,5.41518363]
[1757325712806,0.08887326,210.75,210.74,37.08177472]
[1757325712989,0.08854319,210.76,210.74,37.08177472]
[1757325713410,0.08854319,210.76,210.75,0.67]
[1757325713614,0.08854319,210.76,210.75,7.00659109]
[1757325713811,0.08854319,210.76,210.75,5.41495848]
[1757325714417,0.08863873,210.77,210.75,25.34714358]
[1757325714598,0.08863873,210.77,210.76,0.67]
[1757325715605,0.08863873,210.77,210.76,5.41473334]
[1757325715800,0.08863873,210.77,210.76,30.74473334]
[1757325716005,0.08863873,210.77,210.76,4.74473334]
[1757325717506,7.04522982,210.77,210.68,4.74653502]
[1757325717706,6.33659109,210.7,210.68,4.74653502]
[1757325717909,6.33659109,210.69,210.68,4.74653502]
[1757325718296,0.62,210.73,210.68,4.74653502]
[1757325718522,44.05659109,210.72,210.69,0.67]
[1757325718802,44.05659109,210.72,210.68,4.74653502]
[1757325719404,6.33659109,210.69,210.66,4.74682036]
[1757325719603,6.33659109,210.67,210.66,4.74682036]
[1757325720233,6.33659109,210.67,210.66,30.74682036]
[1757325720520,6.33659109,210.67,210.65,0.03]
[1757325720521,6.95659109,210.67,210.65,0.03]
[1757325720700,0.62,210.7,210.65,4.77718715]
[1757325720903,6.33659109,210.67,210.65,4.77718715]
[1757325721129,37.72,210.68,210.66,0.67]
[1757325721323,37.72,210.69,210.67,0.67]
[1757325721530,37.72,210.69,210.68,4.74653502]
[1757325721833,44.05659109,210.69,210.68,4.74653502]
[1757325722129,37.72,210.69,210.68,4.74653502]
[1757325723433,37.72,210.69,210.66,4.74698566]
[1757325723819,37.72,210.69,210.66,5.41698566]
[1757325723820,44.05659109,210.69,210.66,5.41698566]
[1757325724340,47.04964913,210.69,210.66,5.41698566]
[1757325724638,9.32964913,210.7,210.68,26.0]
[1757325724827,37.72,210.69,210.68,26.0]
[1757325725012,37.74,210.69,210.68,26.0]
[1757325725418,37.74,210.69,210.66,17.28444982]
[1757325725620,37.74,210.69,210.67,0.68]
[1757325725815,37.72,210.69,210.67,0.68]
[1757325727115,37.74,210.69,210.67,0.68]
[1757325727731,37.74,210.69,210.68,4.74653502]
[1757325728429,47.06964913,210.69,210.68,4.74653502]
[1757325729025,37.74,210.69,210.68,4.74653502]
[1757325729230,9.32964913,210.7,210.68,4.74653502]
[1757325729529,37.72,210.69,210.68,4.74653502]
[1757325730411,9.32964913,210.7,210.67,4.74676033]
[1757325730826,37.72,210.69,210.67,4.74676033]
[1757325731040,9.94964913,210.68,210.66,80.1]
[1757325731341,9.94964913,210.67,210.66,80.1]
[1757325732022,9.32964913,210.67,210.66,80.1]
[1757325732335,9.94964913,210.67,210.66,80.1]
[1757325733840,9.32964913,210.67,210.66,84.84698566]
[1757325734733,35.32964913,210.75,210.66,84.84698566]
[1757325735034,9.32964913,210.68,210.66,4.74698566]
[1757325735225,37.72,210.67,210.66,4.74698566]
[1757325735426,37.72,210.67,210.65,4.77721101]
[1757325735730,47.04964913,210.67,210.65,5.45721101]
[1757325736630,47.04964913,210.67,210.66,0.03]
[1757325737126,47.66964913,210.67,210.66,0.03]
[1757325737518,26.0,210.72,210.66,0.03]
[1757325737720,9.32964913,210.69,210.66,0.71]
[1757325737941,37.72,210.68,210.67,0.68]
[1757325738140,37.08,210.68,210.67,0.68]
[1757325739143,37.08,210.68,210.66,26.03]
[1757325739343,46.40964913,210.68,210.66,26.03]
[1757325739642,46.40964913,210.68,210.66,4.77685221]
[1757325740544,9.32964913,210.67,210.66,4.77685221]
[1757325740725,9.94964913,210.67,210.66,0.03]
[1757325743649,9.32964913,210.67,210.66,0.03]
[1757325745846,0.62,210.69,210.66,0.03]
[1757325746142,9.32964913,210.67,210.66,0.03]
[1757325748355,4.02074921,210.67,210.66,0.03]
[1757325748649,41.74074921,210.67,210.66,0.03]
[1757325751644,4.02074921,210.67,210.66,0.03]
[1757325751845,41.74074921,210.67,210.66,0.03]
[1757325753553,0.62,210.74,210.66,0.71]
[1757325753741,37.72,210.73,210.67,2.68466908]
[1757325754049,37.72,210.73,210.66,0.71]
[1757325754050,38.34,210.73,210.68,2.68466908]
[1757325754256,0.62,210.72,210.66,0.71]
[1757325754548,37.72,210.71,210.67,2.6842378]
[1757325754754,37.72,210.71,210.68,2.6842378]
[1757325755144,4.02074921,210.69,210.68,2.6842378]
[1757325755348,41.74074921,210.69,210.67,0.68]
[1757325755539,41.74074921,210.69,210.67,3.36483582]
[1757325755861,41.74074921,210.69,210.68,4.74653502]
[1757325756231,41.74074921,210.69,210.67,0.68]
[1757325756431,41.74074921,210.69,210.67,3.36530647]
[1757325757863,41.74074921,210.69,210.67,8.11198594]
[1757325758158,41.74074921,210.69,210.67,5.42667947]
[1757325758343,41.74074921,210.69,210.68,7.43260325]
[1757325759566,0.62,210.72,210.68,7.43260325]
[1757325759742,4.02074921,210.7,210.68,0.67]
[1757325760058,37.7,210.69,210.68,0.67]
[1757325760257,37.7,210.69,210.68,3.35667924]
[1757325760454,37.7,210.69,210.68,2.68667924]
[1757325760861,37.7,210.69,210.68,7.43321426]
[1757325762160,41.72074921,210.69,210.68,7.43321426]
[1757325764076,0.06,210.79,210.75,39.59559401]
[1757325764239,0.06,210.81,210.68,63.23129211]
[1757325764240,1e-08,210.84,210.83,72.858752]
[1757325764439,7.7,210.95,210.87,39.59559401]
[1757325764639,4.02074921,210.94,210.87,32.70742845]
[1757325764859,7.7,210.95,210.87,33.37742845]
[1757325765059,37.7,210.91,210.87,33.37742845]
[1757325765253,37.7,210.94,210.87,33.37742845]
[1757325766250,37.7,210.94,210.87,38.11968671]
[1757325766965,0.68,210.96,210.87,38.11968671]
[1757325767166,4.70074921,210.96,210.87,38.11968671]
[1757325767473,37.7,210.92,210.87,33.37742845]
[1757325767639,4.70074921,210.95,210.87,33.37742845]
[1757325767640,0.68,210.95,210.87,33.37742845]
[1757325767843,37.7,210.92,210.87,33.37742845]
[1757325768171,0.68,210.95,210.87,38.11968671]
[1757325768467,37.68,210.92,210.87,38.11968671]
[1757325768864,37.68,210.92,210.87,34.0989375]
[1757325769044,37.68,210.92,210.87,38.11968671]
[1757325769246,37.68,210.92,210.87,38.12906755]
[1757325769567,0.68,210.91,210.85,4.74249471]
[1757325769745,0.68,210.91,210.87,4.02074921]
[1757325770241,0.68,210.91,210.87,4.69074921]
[1757325770445,0.1,210.98,210.88,42.11559401]
[1757325770770,23.0,211.03,211.02,28.52]
[1757325770973,23.0,211.03,211.02,35.8960403]
[1757325771262,23.0,211.03,211.02,33.21074921]
[1757325771664,23.0,211.03,211.02,37.94963651]
[1757325772045,23.0,211.03,211.02,33.9288873]
[1757325772242,23.0,211.03,211.02,51.54523052]
[1757325772460,23.0,211.03,211.02,56.81599525]
[1757325774859,23.0,211.03,211.02,0.67]
[1757325775066,23.0,211.03,211.02,23.55710795]
[1757325775464,23.0,211.03,211.02,49.55710795]
[1757325775666,23.0,211.03,211.02,23.55710795]
[1757325775875,23.0,211.03,210.95,35.5519239]
[1757325775876,23.68,211.03,210.96,29.19]
[1757325776076,23.68,211.03,210.97,13.59559401]
[1757325776376,23.0,211.03,211.02,9.29151394]
[1757325779483,23.0,211.03,211.02,9.96151394]
[1757325779979,23.0,211.03,210.99,54.52]
[1757325779980,23.68,211.03,210.99,26.0]
[1757325780277,9.29151394,211.01,210.96,9.29151394]
[1757325780485,0.68,211.0,210.96,9.29151394]
[1757325780675,0.68,210.99,210.98,26.0]
[1757325780878,0.68,210.99,210.98,80.1]
[1757325782275,5.41956111,210.99,210.98,80.1]
[1757325782466,0.68,210.99,210.98,80.1]
[1757325782863,5.41956111,210.99,210.98,80.1]
[1757325783978,5.41956111,210.99,210.95,89.39151394]
[1757325784478,0.68,210.99,210.95,86.41470921]
[1757325784683,4.73935052,211.0,210.95,86.41470921]
[1757325784983,5.41935052,211.0,210.95,87.08470921]
[1757325785370,0.68,211.0,210.95,87.08470921]
[1757325785573,0.68,211.0,210.96,6.31470921]
[1757325785974,5.419437,211.0,210.96,6.31470921]
[1757325786176,4.739437,211.0,210.95,86.41470921]
[1757325786381,0.67,210.99,210.95,86.41470921]
[1757325786878,0.67,210.99,210.95,87.08470921]
[1757325787086,6.31470921,211.01,210.95,80.77]
[1757325787277,6.31470921,211.02,210.96,6.98470921]
[1757325787472,6.98470921,211.02,210.96,6.98470921]
[1757325787980,6.98470921,211.01,210.95,86.41470921]
[1757325788574,4.73933649,211.0,210.96,6.31470921]
[1757325788764,5.40933649,211.0,210.96,6.31470921]
[1757325789177,11.72380821,211.02,210.96,6.31470921]
[1757325789384,11.72380821,211.02,210.96,6.98470921]
[1757325789693,6.98470921,211.01,210.96,6.31470921]
[1757325789872,6.98470921,211.01,210.96,86.41470921]
[1757325790186,0.67,211.01,210.96,86.41470921]
[1757325790501,4.73933649,211.0,210.96,87.08470921]
[1757325790783,4.73933649,211.0,210.97,6.31470921]
[1757325790985,4.73933649,211.0,210.96,87.08470921]
[1757325791186,5.46933649,211.0,210.96,86.41470921]
[1757325791371,11.7840457,211.0,210.96,80.1]
[1757325791573,0.67,210.99,210.96,80.1]
[1757325791772,11.1140457,211.0,210.97,6.31470921]
[1757325791773,0.06,211.0,210.97,6.31470921]
[1757325791973,0.73,211.0,210.97,6.31470921]
[1757325792482,0.06,211.0,210.97,6.31470921]
[1757325792681,0.73,211.0,210.96,86.41470921]
[1757325792881,0.06,211.0,210.94,0.67]
[1757325793183,0.06,211.0,210.99,6.31470921]
[1757325793867,0.06,211.0,210.99,6.98470921]
[1757325794185,0.06,211.0,210.98,6.31470921]
[1757325794370,0.06,211.0,210.98,2.56397962]
[1757325794766,0.06,211.0,210.99,42.78559401]
[1757325794989,0.06,211.0,210.99,45.34957363]
[1757325796072,0.06,211.0,210.99,87.98913474]
[1757325798068,0.06,211.0,210.99,90.65403195]
[1757325798264,0.06,211.0,210.99,90.65349032]
[1757325799012,0.06,211.0,210.99,52.75349032]
[1757325799195,0.06,211.0,210.99,90.63349032]
[1757325799879,0.06,211.0,210.99,303.43349032]
[1757325800298,0.06,211.0,210.99,265.55349032]
[1757325800485,0.06,211.0,210.99,303.43349032]
[1757325802183,0.06,211.0,210.99,265.55349032]
[1757325802382,0.06,211.0,210.99,303.41349032]
[1757325802600,0.06,211.0,210.99,265.55349032]
[1757325802802,0.06,211.0,210.99,303.37349032]
[1757325803805,0.06,211.0,210.99,303.35349032]
[1757325806001,0.06,211.0,210.99,303.33349032]
[1757325807113,0.06,211.0,210.99,303.31349032]
[1757325807416,0.00819616,211.0,210.99,303.31349032]
[1757325808110,23.06,211.03,211.02,68.11559401]
[1757325808303,23.06,211.03,211.02,191.20392921]
[1757325808596,23.06,211.03,211.02,191.87392921]
[1757325809007,23.06,211.03,211.02,158.85281651]
[1757325809190,23.06,211.03,211.02,196.61281651]
[1757325810381,23.06,211.03,211.02,196.61281651]
[1757325810601,23.06,211.03,211.02,196.59281651]
[1757325814031,23.06,211.03,211.02,194.02883689]
[1757325814210,23.06,211.03,211.02,196.59281651]
[1757325814690,23.06,211.03,211.02,158.85281651]
[1757325814889,23.06,211.03,211.02,196.53281651]
[1757325815892,23.06,211.03,211.02,155.61883689]
[1757325816101,23.06,211.03,211.02,195.84281651]
[1757325816927,23.06,211.03,211.02,196.52281651]
[1757325817288,11.0564334,211.03,211.02,196.52281651]
[1757325818396,11.0564334,211.03,211.02,195.84281651]
[1757325819510,11.0564334,211.03,211.02,116.42281651]
[1757325820894,11.0564334,211.03,211.02,196.52281651]
[1757325821306,11.0564334,211.03,211.02,329.22281651]
[1757325822097,0.06,211.05,211.04,42.11559401]
[1757325822299,0.06,211.05,211.04,85.00392921]
[1757325822499,1e-08,211.05,211.04,85.00392921]
[1757325822700,1e-08,211.05,211.04,85.68392921]
[1757325823110,1e-08,211.06,211.05,42.11559401]
[1757325823431,1e-08,211.06,211.05,260.8239292]
[1757325824124,1e-08,211.06,211.05,265.56214289]
[1757325824698,1e-08,211.06,211.05,303.22214289]
[1757325824919,1e-08,211.06,211.05,262.99816327]
[1757325825112,1e-08,211.06,211.05,303.22214289]
[1757325825313,1e-08,211.07,211.06,42.11559401]
[1757325825514,1e-08,211.07,211.06,47.34392921]
[1757325825699,1e-08,211.07,211.06,128.1239292]
[1757325826220,1e-08,211.07,211.06,132.86191839]
[1757325826422,1e-08,211.07,211.06,170.52191839]
[1757325827613,0.71,211.19,211.17,26.0]
[1757325827814,0.1,211.24,211.19,13.59559401]
[1757325828120,0.1,211.24,211.2,16.15957363]
[1757325828423,0.81,211.21,211.2,20.89442211]
[1757325828610,0.1,211.24,211.2,20.89442211]
[1757325828611,0.1,211.24,211.23,39.59559401]
[1757325828807,0.1,211.24,211.23,108.33957363]
[1757325829032,0.1,211.24,211.23,109.01957363]
[1757325829221,0.81,211.24,211.2,33.25484848]
[1757325829421,0.1,211.24,211.23,42.15957363]
[1757325829627,0.1,211.24,211.23,2.56397962]